bitfinex/quotes_ETHUSD_20250130
["timestamp","ask_amount","ask_price","bid_price","bid_amount"]
[1738273423241,3.07967,3247.1,3246.8,0.74914512]
[1738273425188,0.04959038,3247.0,3246.9,0.74914512]
[1738273427173,3.12935038,3247.0,3246.9,0.74914512]
[1738273436057,0.04959038,3247.0,3246.9,0.74914512]
[1738273436392,3.07965,3247.2,3246.9,0.74914512]
[1738273436552,0.04859605,3247.0,3246.9,0.74914512]
[1738273437088,3.07957,3247.3,3246.9,0.74914512]
[1738273437391,3.07968,3247.1,3246.9,0.74914512]
[1738273437756,0.04859605,3247.0,3246.9,0.74914512]
[1738273442305,3.12835605,3247.0,3246.9,0.74914512]
[1738273444303,3.82565866,3247.0,3246.9,0.74914512]
[1738273446112,4.60755866,3247.0,3246.9,0.74914512]
[1738273446417,6.08631259,3247.0,3246.9,0.74914512]
[1738273447915,6.10925936,3247.0,3246.9,0.74914512]
[1738273448125,6.08631259,3247.0,3246.9,0.74914512]
[1738273448613,6.10925936,3247.0,3246.9,0.74914512]
[1738273449678,6.10925936,3247.0,3246.9,0.28813274]
[1738273449892,6.10925936,3247.0,3246.9,2.74e-06]
[1738273451152,3.0805,3246.3,3246.1,0.45999931]
[1738273451299,6.16102,3246.3,3246.1,1.04299924]
[1738273451496,0.04582957,3246.2,3246.1,1.04299924]
[1738273451845,3.0805,3246.3,3246.1,1.04299924]
[1738273452011,0.04582957,3246.2,3246.1,1.04299924]
[1738273452413,3.0805,3246.3,3246.1,1.04299924]
[1738273452644,0.04607471,3246.2,3246.1,1.04299924]
[1738273452846,3.0805,3246.3,3246.1,1.04299924]
[1738273453014,0.04607471,3246.2,3246.1,1.04299924]
[1738273453216,3.0805,3246.3,3246.1,1.04299924]
[1738273453544,0.04607471,3246.2,3246.1,1.04299924]
[1738273453764,0.04607471,3246.2,3246.1,2.55255601]
[1738273454047,0.04593718,3246.2,3246.1,2.52175317]
[1738273454248,3.08026,3246.5,3246.1,2.55255603]
[1738273454443,0.04593718,3246.2,3246.1,2.55255603]
[1738273454812,3.08006,3246.7,3246.1,2.55255603]
[1738273455012,3.08014,3246.6,3246.2,1.1003216]
[1738273455923,3.07985,3247.0,3246.3,1.96955438]
[1738273456126,3.08001,3246.8,3246.3,7.30875324]
[1738273457220,3.08006,3246.7,3246.3,7.30875324]
[1738273457438,3.08014,3246.6,3246.3,5.82999931]
[1738273457761,3.08014,3246.6,3246.4,0.69303209]
[1738273457962,3.08014,3246.6,3246.4,1.1530314]
[1738273458846,3.08024,3246.5,3246.4,1.1530314]
[1738273459162,3.08024,3246.5,3246.4,0.45999931]
[1738273460961,3.90054,3246.5,3246.4,0.45999931]
[1738273462927,3.90054,3246.5,3246.4,0.74602327]
[1738273464672,3.90054,3246.5,3246.4,0.28602396]
[1738273469882,3.9450975,3246.5,3246.4,0.28602396]
[1738273470040,3.9450975,3246.5,3246.4,0.74339548]
[1738273472856,0.0445575,3246.5,3246.4,0.74339548]
[1738273473172,0.0445575,3246.5,3246.4,0.96561042]
[1738273473375,3.08024,3246.5,3246.4,0.74339548]
[1738273473580,3.12414071,3246.5,3246.4,0.74339548]
[1738273487680,3.89514071,3246.5,3246.4,0.74339548]
[1738273500188,5.37389464,3246.5,3246.4,0.74339548]
[1738273500484,5.39684141,3246.5,3246.4,0.74339548]
[1738273500681,9.24453955,3246.5,3246.4,3.96e-06]
[1738273500842,3.08109,3245.6,3245.5,5.37]
[1738273501041,3.08166,3245.0,3244.4,5.37]
[1738273501388,3.0819,3244.8,3244.4,5.37]
[1738273501672,3.08166,3245.0,3244.4,5.37]
[1738273501673,0.04146066,3244.7,3244.4,5.37]
[1738273501838,0.04146066,3244.7,3244.4,5.9881316]
[1738273502039,1.47875393,3245.3,3244.4,5.9881316]
[1738273502040,3.08146,3245.3,3244.5,2.02875393]
[1738273502250,0.04140408,3245.2,3244.9,4.56044393]
[1738273502461,1.47875393,3245.5,3244.6,0.03081233]
[1738273502668,3.08185,3244.8,3244.5,3.45782377]
[1738273502995,3.08185,3244.8,3244.5,0.45782377]
[1738273503195,0.04135537,3244.7,3244.5,0.45782377]
[1738273503490,3.08185,3244.8,3244.5,0.45782377]
[1738273503636,0.04131333,3244.6,3244.5,0.45782377]
[1738273503836,3.08185,3244.8,3244.5,4.21272358]
[1738273504883,3.08185,3244.8,3244.5,3.58781219]
[1738273505890,3.08185,3244.8,3244.6,0.45782377]
[1738273506305,3.08168,3245.0,3244.6,0.45782377]
[1738273506505,3.08149,3245.2,3244.6,0.48864271]
[1738273506658,3.08149,3245.2,3244.7,0.36186311]
[1738273509304,3.08181,3244.9,3244.7,0.36186311]
[1738273509867,0.04126691,3244.8,3244.4,6.27705316]
[1738273510302,3.08181,3244.9,3244.4,6.27705316]
[1738273511009,3.08181,3244.9,3244.5,0.4571716]
[1738273511358,3.08169,3245.0,3244.5,40.8271716]
[1738273511557,3.08169,3245.0,3244.5,5.8271716]
[1738273511758,3.08161,3245.1,3244.5,5.8271716]
[1738273511759,3.08157,3245.1,3244.6,0.98164448]
[1738273512000,0.04130895,3244.9,3244.6,0.98164448]
[1738273512294,0.04126691,3244.8,3244.6,4.06366448]
[1738273512504,0.04126691,3244.8,3244.6,0.98164448]
[1738273512799,3.08157,3245.1,3244.6,1.43881608]
[1738273512993,3.08157,3245.1,3244.7,0.68088161]
[1738273513194,0.04135098,3245.0,3244.7,0.68088161]
[1738273514293,0.04130895,3244.9,3244.7,0.68088161]
[1738273514478,0.04130895,3244.9,3244.8,0.28547922]
[1738273514657,3.08157,3245.1,3244.8,0.28547922]
[1738273514857,0.04135098,3245.0,3244.8,0.52599691]
[1738273515468,3.12302098,3245.0,3244.8,0.52599691]
[1738273515882,3.12302098,3245.0,3244.9,0.28547922]
[1738273518587,0.04135098,3245.0,3244.9,0.28547922]
[1738273519167,3.08143,3245.3,3244.9,0.28547922]
[1738273519381,0.04135098,3245.0,3244.9,0.28547922]
[1738273519581,3.08147,3245.2,3244.9,0.28547922]
[1738273519797,0.04135098,3245.0,3244.9,0.28547922]
[1738273520104,0.04239898,3245.0,3244.9,0.28547922]
[1738273520308,3.08147,3245.2,3244.9,0.28547922]
[1738273520508,0.04135098,3245.0,3244.9,1.29707323]
[1738273520711,3.08157,3245.1,3244.9,1.29707323]
[1738273521619,3.08157,3245.1,3244.9,1.90419868]
[1738273522384,3.08157,3245.1,3245.0,0.28547922]
[1738273523123,3.12409214,3245.1,3245.0,0.28547922]
[1738273524582,3.94209214,3245.1,3245.0,0.28547922]
[1738273524789,6.45990998,3245.1,3245.0,0.28547922]
[1738273524987,6.43676321,3245.1,3245.0,0.28547922]
[1738273525257,6.43676321,3245.1,3245.0,9.22e-06]
[1738273525824,3.08232,3244.3,3244.2,0.45788858]
[1738273526028,3.12408498,3244.3,3244.2,0.45788858]
[1738273529732,0.7503,3244.2,3242.2,5.37]
[1738273529932,0.7503,3243.5,3242.7,0.68890209]
[1738273530182,3.08375,3242.8,3242.7,0.68890209]
[1738273530531,3.12339202,3242.8,3242.7,0.68890209]
[1738273530778,3.08375,3242.8,3242.7,0.68890209]
[1738273531582,3.08353,3243.1,3242.6,0.60379242]
[1738273531792,3.08353,3243.1,3242.7,0.36877724]
[1738273532134,3.08348,3243.1,3242.7,0.36877724]
[1738273533164,3.0836,3243.0,3242.7,0.36877724]
[1738273533479,3.0836,3243.0,3242.6,0.60379242]
[1738273535288,3.08368,3242.9,3242.6,5.97379242]
[1738273535664,3.08383,3242.8,3242.6,5.97379242]
[1738273535859,6.16767,3242.8,3242.6,5.97379242]
[1738273536068,3.08383,3242.8,3242.6,5.97379242]
[1738273536267,3.08383,3242.8,3242.6,5.37]
[1738273537075,0.03933113,3242.7,3242.6,5.37]
[1738273537386,3.08383,3242.8,3242.6,5.37]
[1738273537955,3.08384,3242.7,3242.6,5.37]
[1738273538753,3.12296932,3242.7,3242.6,5.37]
[1738273540096,3.12296932,3242.7,3242.6,5.65614984]
[1738273543304,3.82578925,3242.7,3242.6,0.28614984]
[1738273543960,3.08423,3242.3,3242.2,0.28614984]
[1738273544407,3.94427233,3242.3,3242.2,0.28614984]
[1738273546490,0.03814233,3242.3,3242.2,0.28614984]
[1738273546709,0.03814233,3242.3,3241.9,3.08461]
[1738273546888,3.08419,3242.4,3241.9,3.08461]
[1738273547095,0.03776719,3242.2,3241.9,3.08461]
[1738273547407,3.08419,3242.4,3241.8,0.62872671]
[1738273547711,3.08419,3242.4,3241.8,3.71338671]
[1738273547894,0.03805683,3242.3,3241.8,3.71338671]
[1738273548094,3.12228683,3242.3,3241.8,3.71338671]
[1738273548612,3.12228683,3242.3,3241.9,3.08457]
[1738273548613,0.03805683,3242.3,3241.9,3.08457]
[1738273548974,3.08414,3242.4,3241.9,3.08457]
[1738273549169,0.03801473,3242.2,3241.9,3.08457]
[1738273549375,3.08424,3242.3,3241.8,0.62872671]
[1738273549624,3.12233473,3242.2,3241.8,0.62872671]
[1738273549912,3.87333473,3242.2,3241.6,0.45680486]
[1738273550617,7.69541146,3242.2,3242.1,3.34e-06]
[1738273550814,3.8529,3241.7,3241.6,0.45680486]
[1738273551115,4.41265137,3241.7,3240.5,5.37]
[1738273551320,0.7919,3240.9,3240.5,5.37]
[1738273551612,3.0857,3240.8,3240.5,5.37]
[1738273552109,0.03672622,3240.7,3240.5,5.37]
[1738273552466,3.0857,3240.8,3240.5,5.37]
[1738273552669,3.0857,3240.8,3240.6,0.28556905]
[1738273552670,3.12249622,3240.7,3240.6,0.28556905]
[1738273557162,3.12249622,3240.7,3240.6,0.23556905]
[1738273558060,3.89019622,3240.7,3240.6,0.23556905]
[1738273558266,4.59008052,3240.7,3240.6,0.23556905]
[1738273559725,3.08622,3240.2,3240.1,0.45691049]
[1738273560069,3.12225465,3240.2,3240.1,0.45691049]
[1738273562371,3.08632,3240.1,3240.0,5.37]
[1738273562879,3.12232549,3240.1,3240.0,5.37]
[1738273564570,3.12232549,3240.1,3240.0,5.32]
[1738273564771,3.12232549,3240.1,3239.7,0.61568759]
[1738273564971,0.03600549,3240.1,3239.8,0.58086358]
[1738273565274,3.08567,3240.8,3240.1,0.55]
[1738273565483,3.08567,3240.8,3240.3,3.08607]
[1738273565826,3.08551,3241.0,3240.4,3.08602]
[1738273566173,0.03463467,3240.9,3240.3,0.55]
[1738273566384,3.12027467,3240.9,3240.4,0.36669862]
[1738273566576,0.03463467,3240.9,3240.5,0.55]
[1738273566757,0.03463467,3240.9,3240.7,0.55]
[1738273566962,3.08552,3241.0,3240.5,0.5575]
[1738273567471,0.03463862,3240.9,3240.5,1.18658304]
[1738273567626,3.08575,3240.7,3240.4,0.36669862]
[1738273567829,3.08601,3240.5,3240.3,13.05675816]
[1738273568060,3.12045811,3240.4,3240.3,13.05675816]
[1738273568269,0.03442811,3240.4,3240.3,13.05675816]
[1738273568975,3.12045811,3240.4,3240.2,0.62976226]
[1738273569172,3.86013,3240.3,3240.2,0.62976226]
[1738273569380,3.08665,3239.8,3239.6,0.205]
[1738273569882,0.03416134,3239.7,3239.6,0.205]
[1738273570174,3.08665,3239.8,3239.6,0.205]
[1738273570405,0.03420332,3239.7,3239.4,3.0]
[1738273570609,0.03420332,3239.7,3239.5,1.93488282]
[1738273570763,3.08643,3240.0,3239.6,0.61137499]
[1738273570964,3.08627,3240.2,3239.7,0.58086447]
[1738273571268,3.08608,3240.4,3239.8,3.63661]
[1738273571592,0.03446984,3240.3,3239.9,0.55]
[1738273571888,3.12060984,3240.3,3239.8,0.55]
[1738273572306,3.08626,3240.2,3239.8,0.55]
[1738273572512,3.12062984,3240.3,3239.8,0.55]
[1738273572666,0.03438552,3240.1,3239.8,0.55]
[1738273573093,0.03438552,3240.1,3239.9,0.363669]
[1738273573410,3.08613,3240.3,3239.9,0.363669]
[1738273573594,0.03434335,3240.0,3239.8,0.55]
[1738273573763,3.08613,3240.3,3239.8,0.55]
[1738273573969,0.03427409,3239.9,3239.8,0.55]
[1738273574310,0.03430118,3239.9,3239.8,0.55]
[1738273574466,3.08623,3240.2,3239.8,0.55]
[1738273574803,0.03438552,3240.1,3239.8,0.55]
[1738273576077,0.03438552,3240.1,3239.8,4.2505055]
[1738273576281,0.03319717,3240.0,3239.8,4.2505055]
[1738273576473,3.08608,3240.4,3239.8,4.2505055]
[1738273576689,0.03332365,3240.3,3239.8,4.2505055]
[1738273577020,3.11945365,3240.3,3239.8,4.2505055]
[1738273578260,3.11945365,3240.3,3239.8,1.1639055]
[1738273580251,3.0864,3240.1,3239.6,3.61137499]
[1738273580411,3.0864,3240.1,3239.6,0.61137499]
[1738273580610,3.08652,3239.9,3239.6,0.61137499]
[1738273580937,0.0331577,3239.8,3239.6,0.61137499]
[1738273581505,0.0331577,3239.8,3239.7,3.6442]
[1738273581836,3.08582,3240.7,3240.2,3.08618]
[1738273582146,3.08586,3240.6,3240.1,3.55]
[1738273582444,3.08594,3240.5,3240.1,3.55]
[1738273582804,3.08594,3240.5,3240.1,4.522274]
[1738273583834,0.03232901,3240.4,3240.1,4.522274]
[1738273584034,0.03232901,3240.4,3239.9,3.0]
[1738273584266,0.03232901,3240.4,3239.9,3.205]
[1738273584267,3.08613,3240.3,3239.9,3.205]
[1738273584751,0.0322447,3240.2,3239.9,3.205]
[1738273584925,3.1184847,3240.2,3239.9,0.205]
[1738273585116,3.08614,3240.3,3239.9,0.205]
[1738273585312,0.03220254,3240.1,3239.9,0.55]
[1738273585539,3.086,3240.5,3239.9,4.37160901]
[1738273585864,3.08578,3240.7,3239.9,4.37160901]
[1738273585865,0.03216038,3240.0,3239.9,4.38666901]
[1738273586158,3.08589,3240.6,3240.2,0.55]
[1738273587119,3.07989949,3240.6,3240.2,0.55]
[1738273587676,3.08578,3240.7,3240.2,0.55]
[1738273587816,3.08595,3240.5,3240.0,3.64386]
[1738273588017,3.08595,3240.5,3240.2,0.55]
[1738273589935,0.03224793,3240.4,3240.2,0.55]
[1738273590551,0.03224793,3240.4,3240.0,0.5575]
[1738273590952,3.11830793,3240.4,3240.0,0.5575]
[1738273591668,3.11830793,3240.4,3240.0,1.18233021]
[1738273592251,3.11830793,3240.4,3240.0,1.60995623]
[1738273592950,0.03224793,3240.4,3240.0,4.69636623]
[1738273593155,3.08596,3240.5,3240.0,4.69636623]
[1738273593359,6.17197,3240.5,3240.0,4.69636623]
[1738273594125,3.08609,3240.4,3240.0,1.60995623]
[1738273594331,3.08622,3240.2,3239.7,0.50250011]
[1738273594526,3.08658,3239.9,3239.7,0.50250011]
[1738273594766,3.08658,3239.9,3239.7,0.05644261]
[1738273594968,0.03198392,3239.8,3239.7,0.05644261]
[1738273595852,3.08644,3240.0,3239.7,0.05644261]
[1738273596053,0.03202609,3239.9,3239.7,0.05644261]
[1738273596256,0.03202609,3239.9,3239.7,0.66373979]
[1738273598786,3.08644,3240.0,3239.7,0.66373979]
[1738273598966,3.08644,3240.0,3239.7,1.13058017]
[1738273601528,0.03091418,3239.9,3239.7,1.13058017]
[1738273601720,0.03091418,3239.9,3239.7,36.13058017]
[1738273601922,3.08644,3240.0,3239.7,36.13058017]
[1738273602283,3.08633,3240.1,3239.7,1.13058017]
[1738273602498,0.03095635,3240.0,3239.7,1.13058017]
[1738273602693,0.03095635,3240.0,3239.7,36.13058017]
[1738273603024,3.08633,3240.1,3239.7,36.13058017]
[1738273605231,3.08633,3240.1,3239.7,1.13058017]
[1738273605733,0.02986609,3240.0,3239.7,1.13058017]
[1738273606116,3.08633,3240.1,3239.7,1.13058017]
[1738273606423,3.08623,3240.2,3239.7,4.21726017]
[1738273606786,3.08619,3240.3,3239.7,1.13058017]
[1738273606991,3.08634,3240.1,3239.7,0.66373979]
[1738273608229,0.02873814,3240.0,3239.7,0.66373979]
[1738273608733,3.08634,3240.1,3239.7,0.66373979]
[1738273610451,3.08619,3240.3,3239.7,3.75035979]
[1738273610802,0.02882247,3240.2,3239.7,3.75035979]
[1738273611238,3.08619,3240.3,3239.7,3.75035979]
[1738273611753,0.02882247,3240.2,3239.7,3.75035979]
[1738273612247,3.08625,3240.2,3239.7,3.75035979]
[1738273612451,3.08619,3240.3,3239.7,3.75035979]
[1738273612749,3.08619,3240.3,3239.8,3.08656]
[1738273612750,0.02882247,3240.2,3239.8,3.08656]
[1738273613108,3.08619,3240.3,3239.8,3.08656]
[1738273613311,0.7521,3240.4,3239.9,3.0865]
[1738273613646,3.08597,3240.5,3239.9,3.08645]
[1738273613952,0.02890678,3240.4,3240.0,3.08633]
[1738273614352,3.89767,3240.6,3240.0,3.08633]
[1738273614948,3.10894677,3240.5,3239.9,3.08645]
[1738273615155,3.08609,3240.4,3239.9,0.55]
[1738273615343,3.11501056,3240.4,3239.9,0.55]
[1738273615812,3.08609,3240.4,3239.9,0.55]
[1738273616350,0.0288926,3240.3,3239.9,3.08649]
[1738273616754,6.17203,3240.5,3239.9,3.08649]
[1738273617046,3.08605,3240.4,3239.9,3.08649]
[1738273617252,0.7868,3240.3,3239.7,0.66373979]
[1738273617454,3.87299,3240.3,3239.7,0.66373979]
[1738273617638,3.08634,3240.1,3239.7,0.66373979]
[1738273619158,6.17274,3240.1,3239.7,0.66373979]
[1738273619314,0.02878822,3240.0,3239.7,0.66373979]
[1738273619515,3.08634,3240.1,3239.7,0.66373979]
[1738273620855,0.02878822,3240.0,3239.7,0.66373979]
[1738273622169,0.02878822,3240.0,3239.7,4.14598277]
[1738273622377,0.02878822,3240.0,3239.9,3.08651]
[1738273622666,3.0861,3240.4,3239.8,3.08654]
[1738273622872,0.02878822,3240.0,3239.8,3.08654]
[1738273623101,3.08614,3240.3,3239.8,3.08654]
[1738273623228,3.08614,3240.3,3239.7,1.05929277]
[1738273623430,0.7758,3240.2,3239.7,3.75040979]
[1738273623658,3.08614,3240.3,3239.7,3.75040979]
[1738273623974,3.08614,3240.3,3239.7,3.75038979]
[1738273624134,3.08614,3240.3,3239.7,3.75035979]
[1738273624869,3.08614,3240.3,3239.7,0.66373979]
[1738273625077,3.08614,3240.3,3239.8,3.08658]
[1738273625278,3.86177,3240.5,3239.8,3.08658]
[1738273625279,3.86177,3240.5,3239.9,0.03086286]
[1738273625467,3.08597,3240.5,3239.9,0.55]
[1738273625650,3.08589,3240.6,3240.0,3.08636]
[1738273625845,3.08599,3240.5,3239.9,0.55]
[1738273626078,3.08605,3240.4,3239.9,0.55]
[1738273626993,3.08623,3240.2,3239.7,0.66373979]
[1738273627294,0.7789,3240.3,3239.7,3.75042979]
[1738273627998,3.86506,3240.3,3239.8,3.0866]
[1738273629294,3.86506,3240.3,3239.7,0.66373979]
[1738273629465,3.08626,3240.2,3239.7,0.66373979]
[1738273629879,3.08636,3240.1,3239.7,0.66373979]
[1738273631170,6.95128,3240.3,3239.7,0.66373979]
[1738273631496,3.08625,3240.2,3239.7,0.66373979]
[1738273632187,3.08638,3240.1,3239.7,0.66373979]
[1738273632893,3.08638,3240.1,3239.8,0.23114102]
[1738273633397,3.86505,3240.3,3239.8,0.23114102]
[1738273633996,3.08626,3240.2,3239.8,0.23114102]
[1738273634626,0.80459745,3241.6,3239.9,0.23114102]
[1738273634627,3.88841,3240.0,3239.9,0.23114102]
[1738273636629,3.91135677,3240.0,3239.9,0.23114102]
[1738273637178,3.88841,3240.0,3239.9,0.23114102]
[1738273638133,4.60882977,3240.0,3239.9,0.23114102]
[1738273640867,4.585883,3240.0,3239.9,0.23114102]
[1738273641365,4.585883,3240.0,3239.9,1.02e-06]
[1738273641366,7.60882977,3240.0,3239.9,1.02e-06]
[1738273641567,7.585883,3240.0,3239.9,1.02e-06]
[1738273643558,3.08721,3239.2,3239.0,0.1653388]
[1738273643756,3.87012,3239.4,3239.0,0.1653388]
[1738273643917,3.0871,3239.3,3239.0,0.1653388]
[1738273644662,3.08721,3239.2,3239.0,0.1653388]
[1738273648732,3.08721,3239.2,3239.0,0.64600464]
[1738273649527,3.84217,3239.8,3239.0,0.64600464]
[1738273649732,3.08667,3239.8,3239.2,3.08717]
[1738273649931,3.08667,3239.8,3239.2,3.46048746]
[1738273650558,3.08667,3239.8,3239.2,3.9411533]
[1738273651081,3.0867,3239.7,3239.2,3.9411533]
[1738273651257,3.08667,3239.8,3239.2,3.9411533]
[1738273651579,3.08667,3239.8,3239.3,0.61541121]
[1738273651931,3.08667,3239.8,3239.2,0.8539833]
[1738273652176,3.08673,3239.7,3239.2,0.48066584]
[1738273653377,3.08666,3239.8,3239.2,3.56783584]
[1738273654071,3.08666,3239.8,3239.3,0.48066584]
[1738273656060,6.17336,3239.8,3239.3,0.48066584]
[1738273656676,3.08674,3239.7,3239.3,0.48066584]
[1738273657889,3.0868,3239.6,3239.3,0.48066584]
[1738273658187,3.08681,3239.6,3239.3,0.48066584]
[1738273658746,6.17368,3239.6,3239.3,0.48066584]
[1738273658980,3.08681,3239.6,3239.3,0.48066584]
[1738273659275,3.91081,3239.6,3239.3,0.48066584]
[1738273659482,0.824,3239.6,3239.3,0.48066584]
[1738273659899,3.08699,3239.4,3239.3,0.48066584]
[1738273660105,3.89779,3239.4,3239.3,0.48066584]
[1738273660479,3.08718,3239.2,3239.1,1.08891249]
[1738273662877,3.08718,3239.2,3239.1,0.60824665]
[1738273664394,3.08718,3239.2,3239.1,1.08891249]
[1738273664594,3.89768,3239.2,3239.1,0.48066584]
[1738273664908,4.596147,3239.2,3239.1,0.48066584]
[1738273665803,4.596147,3239.2,3239.0,0.1653388]
[1738273666110,3.11021677,3239.1,3239.0,0.1653388]
[1738273666295,3.08727,3239.1,3239.0,0.1653388]
[1738273667713,3.08727,3239.1,3239.0,0.64600464]
[1738273673027,3.08727,3239.1,3239.0,0.1653388]
[1738273679891,5.35567924,3239.1,3239.0,0.1653388]
[1738273680096,6.22291193,3239.1,3239.0,0.1653388]
[1738273680754,5.44201193,3239.1,3239.0,0.1653388]
[1738273680942,6.22401193,3239.1,3239.0,0.1653388]
[1738273681437,6.20106516,3239.1,3239.0,0.1653388]
[1738273682597,10.71152117,3239.1,3239.0,8.8e-06]
[1738273682797,10.6885744,3239.1,3239.0,8.8e-06]
[1738273684517,10.61619766,3239.1,3239.0,8.8e-06]
[1738273685729,10.62369766,3239.1,3239.0,8.8e-06]
[1738273685928,3.08861,3237.7,3237.5,0.61006916]
[1738273686459,3.08842,3237.9,3237.5,0.61006916]
[1738273687363,0.7501,3238.1,3237.1,0.005]
[1738273687668,3.08898,3237.4,3237.1,0.005]
[1738273687871,6.17794,3237.4,3237.1,0.005]
[1738273688077,3.08908,3237.2,3237.1,0.005]
[1738273691571,3.11202677,3237.2,3237.1,0.005]
[1738273691755,3.08908,3237.2,3237.1,0.005]
[1738273692071,6.81542174,3237.2,3237.1,0.005]
[1738273693177,3.08908,3237.2,3237.1,0.005]
[1738273695373,3.08908,3237.2,3236.1,5.90264174]
[1738273695374,3.08919,3237.1,3236.5,2.85473]
[1738273695672,3.08919,3237.1,3236.5,3.140203]
[1738273697779,3.08929,3237.0,3236.5,0.285473]
[1738273700173,3.08929,3237.0,3236.5,3.375223]
[1738273702588,3.08908,3237.2,3236.5,3.375223]
[1738273702885,6.17825,3237.2,3236.5,3.375223]
[1738273703191,3.08928,3237.0,3236.0,3.09014]
[1738273703392,3.08972,3236.6,3236.0,3.09014]
[1738273703689,3.08973,3236.6,3236.0,3.09014]
[1738273703891,6.17946,3236.6,3236.0,3.09014]
[1738273704074,6.17946,3236.6,3236.0,3.72472488]
[1738273705186,3.08973,3236.6,3236.0,4.35269165]
[1738273706191,3.08975,3236.5,3236.0,4.35269165]
[1738273707680,3.08965,3236.7,3236.1,3.09011]
[1738273707861,3.08952,3236.8,3236.2,3.09002]
[1738273707862,6.17907,3236.8,3236.2,3.09002]
[1738273708185,3.08952,3236.8,3236.2,6.18004]
[1738273708992,3.08952,3236.8,3236.2,3.09002]
[1738273710656,6.17906,3236.8,3236.2,3.09002]
[1738273711454,3.08952,3236.8,3236.2,3.09002]
[1738273711660,3.08952,3236.8,3236.2,3.50530559]
[1738273712262,6.17907,3236.8,3236.2,3.50530559]
[1738273712462,3.08932,3237.0,3236.3,0.55]
[1738273712665,3.08929,3237.0,3236.3,0.55]
[1738273713077,3.08938,3236.9,3236.4,3.08977]
[1738273713260,3.08938,3236.9,3236.4,3.80428256]
[1738273713457,3.08938,3236.9,3236.4,38.80428256]
[1738273714298,3.08929,3237.0,3236.5,3.08974]
[1738273715557,3.0891,3237.2,3236.6,0.55]
[1738273715822,3.0891,3237.2,3236.7,3.08955]
[1738273717206,6.17825,3237.2,3236.5,3.63967]
[1738273717414,6.17825,3237.2,3236.5,4.43906726]
[1738273717915,3.08978,3236.5,3236.0,3.09015]
[1738273718223,3.08994,3236.3,3236.2,0.13440402]
[1738273718375,3.09006,3236.2,3235.8,0.1653388]
[1738273718575,3.09006,3236.2,3235.8,3.1653388]
[1738273718801,3.08988,3236.4,3235.8,3.79092268]
[1738273718990,3.08988,3236.4,3235.9,3.09026]
[1738273719418,3.08988,3236.4,3236.0,0.55]
[1738273719916,3.08988,3236.4,3236.1,0.60299271]
[1738273721215,3.08948,3236.8,3236.2,3.09004]
[1738273721373,3.08948,3236.8,3236.2,3.51434327]
[1738273722211,3.08956,3236.7,3236.2,3.51434327]
[1738273723187,3.08956,3236.7,3236.1,0.60299271]
[1738273723386,3.08977,3236.5,3236.1,0.60299271]
[1738273724080,3.08956,3236.7,3236.1,0.60299271]
[1738273724306,3.08956,3236.7,3236.2,3.08999]
[1738273725326,3.08956,3236.7,3236.2,0.55]
[1738273725790,3.08938,3236.9,3236.2,4.06436227]
[1738273725987,3.08947,3236.8,3236.2,4.06428227]
[1738273726715,3.08947,3236.8,3236.4,0.55]
[1738273727282,3.08928,3237.0,3236.4,0.55]
[1738273727510,3.08939,3236.9,3236.4,0.55]
[1738273727820,3.08947,3236.8,3236.4,0.55]
[1738273728357,3.08928,3237.0,3236.4,0.55]
[1738273728358,3.08938,3236.9,3236.4,0.55]
[1738273728518,3.08947,3236.8,3236.4,0.55]
[1738273729225,3.08949,3236.8,3236.4,0.55]
[1738273730417,3.08949,3236.8,3236.3,3.08989]
[1738273730418,3.08958,3236.7,3236.3,0.55]
[1738273730718,3.91121,3237.2,3236.5,0.55]
[1738273731021,3.0889,3237.4,3236.9,3.08931]
[1738273731182,3.089,3237.3,3236.8,3.55]
[1738273731516,3.0889,3237.4,3236.8,3.55]
[1738273731674,3.08899,3237.3,3236.8,6.63944]
[1738273731879,3.08909,3237.2,3236.9,0.972891]
[1738273732131,3.08901,3237.3,3236.9,0.972891]
[1738273732646,3.08908,3237.2,3236.9,0.972891]
[1738273733713,3.08908,3237.2,3236.8,0.55]
[1738273734844,3.08908,3237.2,3236.7,0.55]
[1738273735433,3.08908,3237.2,3236.7,3.63954]
[1738273736138,3.08895,3237.4,3236.7,3.63954]
[1738273736438,3.08895,3237.4,3236.8,3.08944]
[1738273736602,3.08895,3237.4,3236.9,3.762258]
[1738273738399,3.08895,3237.4,3236.9,0.672898]
[1738273739344,3.08906,3237.3,3236.9,0.672898]
[1738273739538,3.08895,3237.4,3236.9,0.672898]
[1738273740325,3.08895,3237.4,3236.8,3.08945]
[1738273740326,3.9183,3237.3,3236.7,3.6395]
[1738273741308,0.8293,3237.3,3236.7,3.6395]
[1738273741511,3.08917,3237.2,3236.7,3.6395]
[1738273742151,3.08893,3237.4,3236.9,0.55]
[1738273742355,3.08893,3237.4,3236.9,3.08936]
[1738273742534,3.08893,3237.4,3236.9,3.707246]
[1738273742712,3.08874,3237.6,3237.0,3.63922]
[1738273744552,3.08899,3237.3,3237.0,0.55]
[1738273744704,3.08899,3237.3,3236.8,3.63941]
[1738273745034,3.08918,3237.1,3236.6,6.69614823]
[1738273745652,3.08918,3237.1,3236.7,0.55]
[1738273746056,6.20101677,3237.3,3236.7,0.55]
[1738273746429,3.11193677,3237.3,3236.7,0.55]
[1738273746631,3.08912,3237.2,3236.7,0.55]
[1738273747011,3.08943,3236.9,3236.6,0.60650823]
[1738273747237,3.08955,3236.8,3236.6,0.60650823]
[1738273747438,3.08955,3236.8,3236.3,0.55]
[1738273747955,3.08955,3236.8,3236.3,4.26971716]
[1738273749809,3.08955,3236.8,3236.3,1.17979716]
[1738273750008,3.08973,3236.6,3236.3,0.62979716]
[1738273750633,0.02294677,3236.5,3236.3,0.62979716]
[1738273750806,3.08985,3236.4,3236.3,0.62979716]
[1738273751217,3.08973,3236.6,3236.3,0.62979716]
[1738273751459,6.17948,3236.6,3236.3,0.62979716]
[1738273751650,3.08978,3236.5,3236.3,0.62979716]
[1738273752243,3.08973,3236.6,3236.3,0.62979716]
[1738273753036,6.17947,3236.6,3236.3,0.62979716]
[1738273753355,3.08973,3236.6,3236.3,0.62979716]